Cogmind - Beta 12 @@@ ROGUE MODE // 2023.10.18 @ 11:56:09 Player: Fleshy Vegetable Bird Result: Destroyed by S-10 Pest with Light Assault Rifle Performance ------------- Evolutions (0) 0 Regions Visited (2) 400 Robots Destroyed (32) 160 Value Destroyed (642) 642 Prototype IDs (0) 0 Alien Tech Used (0) 0 Bonus (-61) -61 TOTAL SCORE: 1141 Bonus ------- Friendly Fire -61 Cogmind --------- Core Integrity 0/250 Matter 4/300 Energy 125/125 System Corruption 0% Temperature Cool (0) Movement Treading (160) Location -10/Mines Parts ------- > --- POWER (1) -------- Light Ion Engine > --- PROPULSION (2) --- Improved Treads Improved Treads > --- UTILITY (2) ------ Large Storage Unit > --- WEAPON (2) ------- Mini Grenade Launcher Mini Grenade Launcher > --- INVENTORY (15) --- Improved Treads Improved Treads Large Storage Unit Hacking Suite Assault Rifle Light Assault Rifle Mini Grenade Launcher Mini Grenade Launcher Mining Laser Peak State ------------ > --- POWER ------------ Ion Engine > --- PROPULSION ------- Improved Treads Improved Treads > --- UTILITY ---------- Large Storage Unit Improved Terrain Scanner > --- WEAPON ----------- Assault Rifle Mini Grenade Launcher > --- INVENTORY -------- Light Ion Engine Improved Treads Improved Treads Large Storage Unit Hacking Suite Assault Rifle Light Assault Rifle Mini Grenade Launcher Mini Grenade Launcher Mini Grenade Launcher Mining Laser [Rating: 13] Favorites ----------- Power Ion Engine Engine Ion Engine Propulsion Improved Treads Treads Improved Treads Wheel Wheel Utility Large Storage Unit Device Improved Terrain Scanner Storage Large Storage Unit Weapon Assault Rifle Ballistic Gun Assault Rifle Launcher Mini Grenade Launcher Build | -11 -10 -10 ------- Run | Jun Mat Min Slots Evolved . | . . . Power . | . . . Propulsion . | . . . Utility . | . . . Weapon . | . . . Parts Attached 16 | 8 4 4 Power 2 | 1 . 1 Engine 2 | 1 . 1 Core . | . . . Reactor . | . . . Propulsion 6 | 3 2 1 Treads 2 | . 1 1 Leg . | . . . Wheel 4 | 3 1 . Hover . | . . . Flight . | . . . Utility 3 | 2 1 . Device 1 | 1 . . Storage 2 | 1 1 . Processor . | . . . Hackware . | . . . Protection . | . . . Artifact . | . . . Weapon 5 | 2 1 2 Energy Gun . | . . . Energy Cannon . | . . . Ballistic Gun 3 | 2 1 . Ballistic Cannon . | . . . Launcher 2 | . . 2 Special Weapon . | . . . Impact Weapon . | . . . Slashing Weapon . | . . . Piercing Weapon . | . . . Special Melee Weapon . | . . . Unidentified Prototypes . | . . . Parts Lost 5 | . 2 3 Power 1 | . . 1 Propulsion 2 | . 2 . Utility 1 | . . 1 Weapon 1 | . . 1 Highest Loss Streak 3 | . 1 3 To Critical Strikes . | . . . Average Slot Usage (%) 89 | . 88 93 Engine 13 | . 14 13 Treads 13 | . 10 26 Wheel 5 | . 7 . Device 13 | . 14 10 Storage 14 | . 14 14 Ballistic Gun 25 | . 28 14 Launcher 2 | . . 12 Naked Turns . | . . . Heaviest Build 30 | 15 30 30 Greatest Support 46 | 32 23 46 Greatest Overweight (x) 1 | 1 1 1 Average Overweight (x) . | . 1 . Largest Inventory Capacity 15 | 8 15 15 Average Capacity 14 | 7 14 15 Most Carried 13 | 5 13 12 Average Carried 10 | 2 10 10 Final Capacity 15 | 8 15 15 Final Carried 12 | 4 12 9 Class Distribution -------------------- 100% | Mutant Dominant Class ---------------- Mutant | -10/Materials Mutant | -10/Mines Resources | -11 -10 -10 ----------- Run | Jun Mat Min Matter Collected 701 | 283 404 14 Remotely . | . . . Salvage Created 925 | 133 613 179 Parts 64 | 13 43 8 Haulers Intercepted 1 | . 1 . Recyclers Shooed 2 | . 2 . Parts Field Recycled . | . . . Retrieved Matter . | . . . Parts Self-Destructed . | . . . Prevented . | . . . Kills | -11 -10 -10 ------- Run | Jun Mat Min Combat Hostiles Destroyed 19 | . 11 8 Guns 11 | . 11 . AOE 8 | . . 8 Classes Destroyed 9 | 2 6 1 Worker 1 | . 1 . Tunneler 4 | 4 . . Hauler 1 | . 1 . Recycler 4 | 1 2 1 Operator 1 | . 1 . Watcher 2 | . 2 . Swarmer 8 | . 6 2 Grunt 9 | . 5 4 Sentry 2 | . . 2 Best Kill Streak 5 | 3 5 5 Combat Bots Only 4 | . 3 4 Max Kills in Single Turn 2 | 1 1 2 Gunslinging . | . . . Exploded 2 | . . 2 Melee . | . . . Uniques/NPCs Destroyed . | . . . Combat | -11 -10 -10 -------- Run | Jun Mat Min Damage Taken 1000 | . 536 464 Core 256 | . 119 137 Absorbed by Shields . | . . . Core Remaining (%) 100 | 100 . . Volleys Fired 87 | 11 64 12 Largest 2 | 2 2 2 Hottest 60 | 40 40 60 Shots Fired 174 | 22 128 24 Gun 154 | 22 128 4 Cannon . | . . . Launcher 20 | . . 20 Special . | . . . Kinetic 154 | 22 128 4 Thermal . | . . . Explosive 20 | . . 20 Electromagnetic . | . . . Robot Hit Streak 8 | 8 7 4 Robot Miss Streak 5 | 2 5 1 Penetration Max . | . . . Secondary Targets 2 | . 2 . Max Gunslinging Chain 1 | . 1 . Shots Hit Robots 104 | 13 80 11 Core Hits 51 | 6 29 16 Critical Kills . | . . . Critical Parts Destroyed 1 | . 1 . Critical Strikes 1 | . 1 . Destroy 1 | . 1 . Melee Attacks . | . . . Impact . | . . . Slashing . | . . . Piercing . | . . . Sneak Attacks . | . . . Combat Hostiles . | . . . Follow-up Attacks . | . . . Damage Inflicted 2055 | 153 1015 887 Guns 1204 | 153 1015 36 Cannons . | . . . Explosions 851 | . . 851 Melee . | . . . Ramming . | . . . Kinetic 1204 | 153 1015 36 Thermal 48 | . . 48 Explosive 803 | . . 803 Electromagnetic . | . . . Impact . | . . . Slashing . | . . . Piercing . | . . . Highest Corruption . | . . . Average Corruption . | . . . Corruption Purged . | . . . Corruption Blocked . | . . . Overload Shots . | . . . Overflow Damage 32 | . . 32 Projectiles . | . . . Explosions 32 | . . 32 Melee . | . . . Knockbacks . | . . . Impact . | . . . Kinetic . | . . . Secondary . | . . . Self-Inflicted Damage 88 | . . 88 Shots 3 | . . 3 Rammed . | . . . Targets Rammed . | . . . Kicked . | . . . Crushed . | . . . Highest Temperature 108 | . 2 108 Average Temperature 43 | . 2 56 Received Heat Transfer 414 | . 231 183 Siege Activations . | . . . Robots Corrupted . | . . . Combat Hostiles . | . . . Parts Fried . | . . . Impact Corruptions . | . . . Robots Melted . | . . . Combat Hostiles . | . . . Parts Melted . | . . . Heat Transferred 100 | . . 100 Parts Sabotaged . | . . . Parts Stolen . | . . . Parts Stripped . | . . . Power Chain Reactions . | . . . Missiles Intercepted . | . . . Alert | -11 -10 -10 ------- Run | Jun Mat Min Peak Influence 351 | 25 278 351 Initial 35 | . 16 35 Average 118 | 12 129 117 Maximum Alert Level 1 | . 1 1 Low Security (%) 87 | 100 87 84 Level 1 12 | . 12 15 Level 2 . | . . . Level 3 . | . . . Level 4 . | . . . Level 5 . | . . . High Security . | . . . Max Security . | . . . Squads Dispatched 3 | . 3 . Investigation 2 | . 2 . Extermination . | . . . Reinforcement 1 | . 1 . Assault . | . . . Garrison . | . . . Intercept . | . . . Searches Triggered . | . . . Construction Impeded . | . . . Haulers Reinforced . | . . . Active Scanning Responses . | . . . Cargo Convoy Interrupts . | . . . Stealth | -11 -10 -10 --------- Run | Jun Mat Min Distress Signals 2 | . 2 . Communications Jammed . | . . . Distress Signals . | . . . Times Spotted 28 | . 21 7 Peak Tracking Total 5 | . 5 3 Tactical Retreats 1 | . 1 . Traps | -11 -10 -10 ------- Run | Jun Mat Min Traps Triggered 3 | . 3 . Indirectly . | . . . Trap Hack Attempts . | . . . Triggered . | . . . Disarmed . | . . . Reprogrammed . | . . . Reused . | . . . Traps Extracted . | . . . Installed . | . . . Triggered . | . . . Machines | -11 -10 -10 ---------- Run | Jun Mat Min Machines Disabled 5 | . . 5 Max in Single Turn 2 | . . 2 Machines Repaired . | . . . Machines Sabotaged . | . . . Overloaded Fab Kills . | . . . Hacking | -11 -10 -10 --------- Run | Jun Mat Min Machines Accessed 6 | . 6 . Terminals 6 | . 6 . Fabricators . | . . . Repair Stations . | . . . Recycling Units . | . . . Scanalyzers . | . . . Garrison Access . | . . . Total Hacks 25 | . 25 . Successful 11 | . 11 . Failed 14 | . 14 . Catastrophic 2 | . 2 . Database Lockouts . | . . . Manual 25 | . 25 . Terminals 25 | . 25 . Fabricators . | . . . Repair Stations . | . . . Recycling Units . | . . . Scanalyzers . | . . . Garrison Access . | . . . Terminal Hacks 3 | . 3 . Part Schematic 2 | . 2 . Terminal Index 1 | . 1 . Fabricator Hacks . | . . . Repair Station Hacks . | . . . Recycling Unit Hacks . | . . . Scanalyzer . | . . . Garrison Access Hacks . | . . . Unauthorized Hacks 8 | . 8 . Terminals 8 | . 8 . Track 1 | . 1 . Assimilate 1 | . 1 . Botnet 5 | . 5 . Operators 1 | . 1 . Fabricators . | . . . Repair Stations . | . . . Recycling Units . | . . . Scanalyzers . | . . . Garrison Access . | . . . Data Cores Recovered . | . . . Used . | . . . Hacking Detections 6 | . 6 . Full Trace Events . | . . . Feedback Events . | . . . Feedback Blocked . | . . . Robot Schematics Acquired . | . . . Robots Built . | . . . Authchips . | . . . Time . | . . . Total Robot Build Rating . | . . . Part Schematics Acquired 2 | . 2 . Parts Built . | . . . Authchips . | . . . Time . | . . . Total Part Build Rating . | . . . Parts Repaired . | . . . Time . | . . . Parts Recycled . | . . . Recycled Matter . | . . . Retrieved Matter . | . . . Retrieved Components . | . . . Parts Scanalyzed . | . . . Part Schematics Acquired . | . . . Parts Damaged . | . . . Bothacking | -11 -10 -10 ------------ Run | Jun Mat Min Used RIF Installer . | . . . Robots Hacked . | . . . Non-combat . | . . . Combat . | . . . Robot Hacks Applied . | . . . Relay Couplers Released . | . . . Fabnet Peak Effective % . | . . . Robots Rewired . | . . . Allies Hacked . | . . . Hacks Repelled . | . . . Allies | -11 -10 -10 -------- Run | Jun Mat Min Total Allies 1 | . 1 . Largest Group 1 | . 1 . Highest-Rated Group 10 | . 10 . Highest-Rated Ally 10 | . 10 . Total Orders . | . . . Ally Attacks . | . . . Total Damage . | . . . Kills . | . . . Allies Corrupted . | . . . Allies Melted . | . . . Intel | -11 -10 -10 ------- Run | Jun Mat Min Robot Analysis Total . | . . . Derelict Logs Recovered . | . . . Drone Launches . | . . . Drone Recoveries . | . . . Exploration | -11 -10 -10 ------------- Run | Jun Mat Min Turns Passed 1569 | 121 1150 298 Spaces Moved 663 | 60 469 134 Core 5 | 5 . . Treads 391 | . 257 134 Legs . | . . . Wheels 267 | 55 212 . Hover . | . . . Flight . | . . . Fastest Speed 50 | 50 95 160 Average Speed 165 | 92 174 168 Slowest Speed 240 | 100 240 240 Overloaded Moves . | . . . Propulsion Burnouts . | . . . Robots Hopped . | . . . Cave-ins Triggered . | . . . Exploration Rate (%) 40 | 4 79 38 Regions Visited 2 Branch Regions 1 Pre-discovered Areas . | . . . Known Exits Taken . | . . . Unknown Exits Taken 2 | 1 1 . Scrap Searched . | . . . Spaces Dug . | . . . Terrain Destroyed 95 | . . 95 Melee . | . . . Projectile . | . . . AOE 95 | . . 95 Terrain Rammed . | . . . Walls Destroyed . | . . . Machines Disabled . | . . . Actions | -11 -10 -10 --------- Run | Jun Mat Min Total 960 | 105 674 181 Wait 165 | 9 125 31 Move 661 | 59 468 134 Hop . | . . . Pick Up 26 | 14 12 . Fast Attach . | . . . Attach 14 | 8 3 3 Detach . | . . . Swap 2 | . 1 1 Drop 5 | 4 1 . Fire 87 | 11 64 12 Melee . | . . . Ram . | . . . Kick . | . . . Crush . | . . . Escape Stasis . | . . . Rewire . | . . . Trap . | . . . Miscellaneous . | . . . Route ------- -11/Junkyard -10/Materials (discovered 5 exits: [*Mat x3] / [*Min x2]) -10/Mines History --------- Turn | Location | Event 18 | -11/Junkyard | Discovered new exit (range 14) 122 | -11/Junkyard | Entered Materials 250 | -10/Materials | Discovered new exit (range 10) 310 | -10/Materials | Build established: Mutant 696 | -10/Materials | Discovered new exit (range 10) 741 | -10/Materials | Discovered new exit (range 16) 837 | -10/Materials | Discovered new exit (range 15) 1040 | -10/Materials | Discovered new exit (range 16) 1272 | -10/Materials | Entered Mines 1277 | -10/Mines | Met a Derelict bent on vengeance 1490 | -10/Mines | Core integrity fell below 50% 1515 | -10/Mines | Core integrity fell below 20% 1524 | -10/Mines | Lost 3 parts (1p1u1w) 1570 | -10/Mines | Destroyed by S-10 Pest with Light Assault Rifle Last Messages --------------- 01515_ The unstable cave ceiling collapses. 01516_ Destroyed Tractor Beam. 01516_ R-06 Scavenger destroyed. 01517_ The unstable cave ceiling collapses. 01523_ Critical hit (Burn: +37). 01525_ The unstable cave ceiling collapses. 01525_ Destroyed Lgt. Nuclear Core. 01525_ G-47 Trooper destroyed. 01525_ Y-45 Defender destroyed. 01529_ The unstable cave ceiling collapses. 01541_ U-05 Engineer lays Concrete. 01542_ The unstable cave ceiling collapses. 01542_ U-05 Engineer lays Concrete. 01544_ The unstable cave ceiling collapses. 01545_ U-05 Engineer lays Concrete. 01547_ U-05 Engineer builds a Wall. 01548_ The unstable cave ceiling collapses. 01567_ Seismic Survey Station disabled. 01567_ Plasma Injector explodes. 01567_ S-10 Pest destroyed. Map ----- +----------------------------------------------------+ | | | ??????????????????????????????????????? | | ??????????????????????????????????????? | | ??????????????????????????????????????? | | ??????????????????????????????????????? | | ??????????????????????????????????????? | | ??????????????????????????????????????? | | ??????????????????????????????????????? | | ????????????????##???? ?????????????? | | ??????????????#" ##? #???????????? | | ????????###???"" # ????????????? | | ????? ?? ###[] + ?????????????? | | ??????? # ! #?????????????? | | ????? = # #?????????????? | | ???? * #??????????????? | | ????? s ### ##???#??????????? | | ?????? * #??????????????? | | ??#? # # ####???????????? | | ????? " ??????????? | | ???? ??"" ## ???????????? | | ????????? # # #?????????????? | | ??????????# # #??#?????????????? | | ???????#### ## #??????????????????? | | ???????# #???????????????????? | | ???????# ## #???????????????????? | | ???#???# ## @####???????????????????? | | ?????### #######??????????????????????? | | ???### #????????????????????????????? | | ??## ##??#????????????????????????? | | ??# ####??????? ????????????????? | | ??# ##??????????? ???????????? | | ??# ##?#? ?????? ???????????? | | ??# #???????????????????????? | | ??# ###??????????????????????? | | ??# ########??????????? ????????????? | | ??# ##??#?????#???###????????????????? | | ??# ##????????????# ##??????????????? | | ??# ############## ??????????????? | | ??# ??????????????? | | ?## ??????????????? | | ??####### #######??# ???????????????? | | ??#?????# #?#???#??# ##??????????????? | | ????????# #????????# #???????????????? | | ???#?#??# #????????# #???????????????? | | ????##### #????????# #???????????????? | | ????# #?#??????# #?????????#?? ??? | | ??#?# ############## ##??????????????? | | ????# #?##?# ###????????????? | | ????# #?#??# ###???????? ?? | | ????# #????# ####### ##?????????? | +----------------------------------------------------+ Best States ------------- Heat Dissipation 25 Energy Generation 10 Energy Capacity 250 Matter Stores 300 Matter Capacity 300 Sight Range 16 Terrain Scan Range 16 Terrain Scan Density 10 Evasion (%) 41 Recoil Reduction 2 Item Schematics ----------------- Wheel | -10/Materials | Hacked Lrg. Storage Unit | -10/Materials | Hacked Robot Schematics ------------------ None Fabricated ------------ Nothing Alien Tech Used ----------------- None Achievements -------------- None Challenges ------------ None Game ------ Seed HybridThermicGuard Manual? 0 Play Time 00:10:21 Cumulative 316.4 hours Start 2023.10.18 @ 11:47:21 End 2023.10.18 @ 11:56:09 Sessions 1 Manual Loads 0 Difficulty Rogue Special Mode None Game No. 354 Rogue 354 Adventurer 0 Explorer 0 Win Type - Total 6 Types 3/1/1/1/0/0/0/0/0 Lore% 64 Gallery% 78 Achievement% 67 Wizard Run 0 Options --------- ASCII 0 Keyboard 0 Movement Numpad Keybinds 0 Fullscreen 1 Font 24/Smallcaps Map View 76x50 Tactical HUD 1 Map Filters NONE Filters NONE Steam 1 RUN: 966d8390-b409-4d99-a20f-31f2bc167d0f